bitfinex/quotes_ETHUSD_20241120
["timestamp","ask_amount","ask_price","bid_price","bid_amount"]
[1732112168229,4.3637,3148.2,3146.8,1.1415]
[1732112168430,3.17753,3147.1,3146.9,0.400162]
[1732112168678,3.1779,3146.8,3146.3,1.1092]
[1732112168993,4.09114234,3148.6,3146.7,0.01]
[1732112169277,3.17609,3148.6,3147.7,1.1292]
[1732112169576,3.17619,3148.5,3147.8,2.8908898]
[1732112169744,6.3509,3149.2,3148.3,0.01]
[1732112169947,3.17434,3150.3,3148.5,0.01]
[1732112170145,1.1626,3150.4,3148.5,0.01]
[1732112170146,3.17425,3150.4,3149.2,1.1092]
[1732112170366,3.17479,3149.9,3149.3,0.42945648]
[1732112170582,3.175,3149.6,3149.3,0.42945648]
[1732112170755,3.175,3149.6,3149.2,1.1092]
[1732112170756,3.1753,3149.3,3149.2,1.1092]
[1732112171109,3.175,3149.6,3148.5,1.1885]
[1732112171254,3.175,3149.6,3148.1,2.85879]
[1732112171255,0.02371098,3149.5,3148.1,0.02393727]
[1732112171453,3.17642,3148.2,3148.0,1.1885]
[1732112171790,3.17651,3148.1,3148.0,1.1885]
[1732112171991,3.17651,3148.1,3147.5,0.03516368]
[1732112172208,3.17651,3148.1,3147.4,1.1767]
[1732112172209,0.02371098,3148.6,3147.4,1.1767]
[1732112172353,3.17571,3148.9,3147.6,2.85932]
[1732112172699,3.17618,3148.5,3147.7,0.32186941]
[1732112172867,1.135,3150.4,3148.5,0.01]
[1732112173055,3.1743,3150.3,3148.9,4.03476]
[1732112173250,3.17492,3149.7,3149.0,0.03174545]
[1732112173455,3.1743,3150.3,3149.0,0.03174545]
[1732112173456,3.17379,3150.8,3149.3,0.01]
[1732112173796,3.17467,3150.0,3149.3,0.03174158]
[1732112173961,3.1747,3149.9,3149.2,2.88960158]
[1732112174157,0.431876,3150.8,3149.3,2.891976]
[1732112174158,3.1742,3150.4,3149.3,2.891976]
[1732112174396,3.17472,3149.9,3149.4,0.03174234]
[1732112174558,3.17521,3149.4,3148.9,1.1767]
[1732112174906,3.17457,3150.1,3149.1,0.55]
[1732112175193,3.17471,3149.9,3149.2,2.58205451]
[1732112175495,3.17465,3150.0,3149.3,0.56723845]
[1732112175695,3.17346,3151.2,3149.5,1.1071]
[1732112175898,3.17444,3150.2,3149.6,0.03174013]
[1732112176061,3.17444,3150.2,3149.5,1.1071]
[1732112176488,0.02371098,3150.6,3149.5,1.1071]
[1732112176711,3.17479,3149.9,3149.5,1.13884442]
[1732112176871,3.17498,3149.7,3149.1,0.03174526]
[1732112177095,7.26515234,3150.6,3149.0,1.1763]
[1732112177096,3.17551,3149.1,3149.0,1.1763]
[1732112177307,3.17573,3148.9,3148.5,1.1763]
[1732112177610,3.17628,3148.4,3148.0,1.20805674]
[1732112177809,3.17628,3148.4,3148.0,1.1763]
[1732112177965,4.27139,3149.3,3148.0,1.1763]
[1732112177966,3.17651,3148.1,3148.0,1.1763]
[1732112178170,3.17632,3148.3,3148.0,1.1763]
[1732112178595,3.17623,3148.4,3148.0,1.1763]
[1732112178915,3.17632,3148.3,3148.0,1.1763]
[1732112179107,3.176,3148.7,3148.1,0.03176015]
[1732112179329,0.427139,3149.2,3148.0,1.20805951]
[1732112179459,3.17571,3148.9,3148.0,1.1763]
[1732112179808,3.17639,3148.3,3147.6,0.03176317]
[1732112180012,0.34128198,3148.8,3147.5,1.1254]
[1732112180300,7.26672234,3149.1,3147.0,3.6347]
[1732112180301,3.17692,3147.8,3147.0,3.6347]
[1732112180504,3.01,3149.0,3147.1,0.03176818]
[1732112180712,3.17712,3147.6,3147.0,1.0926]
[1732112180867,3.17667,3148.0,3147.0,1.0926]
[1732112181067,1.1391,3148.9,3147.1,0.04176818]
[1732112181380,1.1111,3149.4,3148.3,2.54104]
[1732112181580,3.1759,3148.8,3148.4,0.254104]
[1732112181774,3.17533,3149.3,3147.9,0.03175763]
[1732112181982,1.1111,3149.4,3147.9,0.04175763]
[1732112182227,3.17557,3149.1,3148.0,0.25831376]
[1732112182506,3.17557,3149.1,3148.4,2.5409]
[1732112182706,3.17559,3149.1,3148.5,1.17845517]
[1732112182916,3.17521,3149.4,3148.5,1.55040369]
[1732112183114,3.17473,3149.9,3149.2,2.54032]
[1732112183440,3.1752,3149.5,3148.8,2.54064]
[1732112183566,3.17522,3149.4,3148.6,2.57255871]
[1732112183766,0.02371098,3149.4,3148.5,1.1467]
[1732112184000,3.17535,3149.3,3148.6,2.5408]
[1732112184206,3.1756,3149.1,3148.5,1.1467]
[1732112184572,3.17577,3148.9,3148.6,0.03175307]
[1732112184811,0.02371098,3148.8,3148.0,1.1142]
[1732112185111,3.1766,3148.1,3147.5,1.1142]
[1732112185328,4.11485332,3148.6,3147.0,1.1635]
[1732112185526,3.17631,3148.3,3147.0,1.1635]
[1732112185687,3.17732,3147.4,3147.0,1.1635]
[1732112185886,3.17651,3148.1,3147.0,1.1635]
[1732112186094,3.17735,3147.3,3146.5,1.1812]
[1732112186334,3.17754,3147.1,3146.5,1.1812]
[1732112186487,3.17723,3147.4,3146.6,0.03177566]
[1732112186691,0.3200021,3148.1,3147.1,2.54196]
[1732112186886,3.17692,3147.7,3147.1,2.54196]
[1732112187092,1.1055,3148.4,3147.4,2.54171]
[1732112187387,3.17688,3147.8,3147.2,0.254196]
[1732112187699,3.1775,3147.2,3146.3,2.5426]
[1732112187931,3.1778,3146.9,3146.4,0.03177494]
[1732112188135,3.17812,3146.6,3146.1,1.143]
[1732112188340,3.17783,3146.8,3146.2,2.54273]
[1732112188494,0.02371098,3147.4,3146.1,1.143]
[1732112188818,3.17726,3147.4,3146.2,0.0317801]
[1732112188987,3.17664,3148.0,3147.1,1.1531]
[1732112189190,3.17664,3148.0,3147.2,0.03176796]
[1732112189415,3.17682,3147.8,3147.2,2.57369796]
[1732112189634,0.02371098,3148.3,3147.1,1.18486808]
[1732112189929,0.02371098,3148.3,3146.8,2.5422]
[1732112189930,3.17735,3147.3,3146.6,2.54237]
[1732112190303,0.02371098,3148.0,3146.7,0.03177444]
[1732112190484,3.17734,3147.3,3146.5,1.30917821]
[1732112190692,3.17734,3147.3,3146.5,3.88341275]
[1732112190917,3.17679,3147.9,3146.5,4.27175403]
[1732112191124,3.17702,3147.6,3146.7,2.54229]
[1732112191317,3.17731,3147.4,3146.6,0.45894991]
[1732112191535,3.17731,3147.4,3146.6,2.54242]
[1732112191724,3.17729,3147.4,3146.7,2.54234]
[1732112191930,3.1776,3147.1,3146.5,3.7307]
[1732112192215,3.1776,3147.1,3146.3,2.54266]
[1732112192216,3.17801,3146.7,3146.1,1.1908]
[1732112192387,3.17812,3146.6,3146.1,1.1908]
[1732112192832,3.17812,3146.6,3146.0,2.54288]
[1732112192833,1.1602,3146.5,3145.8,0.03177512]
[1732112193051,3.17844,3146.2,3145.6,3.91e-06]
[1732112193330,3.17872,3146.0,3145.6,3.91e-06]
[1732112193496,3.17846,3146.2,3145.6,3.91e-06]
[1732112193697,3.70339423,3146.4,3145.6,3.91e-06]
[1732112193698,3.17826,3146.4,3145.6,3.91e-06]
[1732112194141,3.17821,3146.5,3145.7,2.54309]
[1732112194340,3.17827,3146.4,3145.6,3.91e-06]
[1732112194657,0.02371098,3146.5,3145.6,3.91e-06]
[1732112194789,3.17829,3146.4,3145.8,2.54306]
[1732112195230,3.17829,3146.4,3145.6,2.54317391]
[1732112195435,0.02371098,3146.7,3145.6,2.54317391]
[1732112195740,3.17797,3146.7,3145.7,1.1449]
[1732112195909,4.1352,3145.7,3145.6,3.91e-06]
[1732112196116,4.31945623,3145.7,3145.6,3.91e-06]
[1732112196320,3.17894,3145.7,3145.6,3.91e-06]
[1732112197142,3.17876,3145.9,3145.6,3.91e-06]
[1732112197439,3.17815,3146.5,3145.6,3.91e-06]
[1732112197638,3.17793,3146.7,3145.7,2.54315]
[1732112197811,3.17775,3146.9,3146.0,2.54284]
[1732112198014,3.17763,3147.0,3146.0,0.25746217]
[1732112198199,3.17802,3146.7,3146.1,0.03177891]
[1732112198397,3.1782,3146.5,3145.9,0.0317804]
[1732112198598,3.17818,3146.5,3145.8,2.54306]
[1732112198924,3.17763,3147.0,3146.3,2.54265]
[1732112199097,1.19861098,3147.2,3145.9,1.12397888]
[1732112199293,3.17819,3146.5,3145.9,1.0922]
[1732112199540,3.17828,3146.4,3145.7,2.54309]
[1732112199747,0.31777,3146.9,3145.8,2.54302]
[1732112199907,3.17804,3146.6,3146.0,2.5429]
[1732112200235,3.17785,3146.8,3146.1,2.54279]
[1732112200395,0.02371098,3147.1,3145.6,3.91e-06]
[1732112200609,3.17794,3146.7,3145.8,2.54301]
[1732112200833,3.17816,3146.5,3145.9,2.54293]
[1732112201264,0.02371098,3146.6,3145.6,2.54320391]
[1732112201265,3.1783,3146.4,3145.6,2.54320391]
[1732112201461,0.02371098,3146.8,3146.0,2.54291]
[1732112201664,3.17773,3146.9,3146.2,2.54268]
[1732112201808,3.17711,3147.6,3146.9,2.54212]
[1732112202367,5.24154234,3148.4,3147.4,2.54172]
[1732112202507,3.17661,3148.1,3146.7,0.03177403]
[1732112202709,0.62031957,3148.3,3146.7,0.03177403]
[1732112202906,3.17642,3148.2,3146.7,3.03177403]
[1732112203160,3.17669,3148.0,3147.2,2.54194]
[1732112203368,0.59660859,3148.3,3147.7,2.54147]
[1732112203510,0.07245436,3148.3,3147.7,2.54147]
[1732112203713,0.07245436,3148.3,3148.2,2.54113]
[1732112204213,0.02371098,3148.9,3148.2,2.54113]
[1732112204612,0.02371098,3148.9,3147.4,0.03175773]
[1732112204853,3.17602,3148.6,3147.9,2.54135]
[1732112205160,3.17602,3148.6,3147.4,0.03175773]
[1732112205161,0.02371098,3148.5,3147.7,2.54151]
[1732112205343,0.02371098,3148.5,3147.3,2.54182]
[1732112205344,3.17652,3148.1,3147.3,2.54182]
[1732112205514,3.17644,3148.2,3147.1,2.54196]
[1732112205716,3.17682,3147.8,3147.1,2.54196]
[1732112205915,3.17685,3147.8,3146.9,1.1852]
[1732112206262,3.17633,3148.3,3147.5,2.54166]
[1732112206409,0.02371098,3148.2,3147.1,2.54199]
[1732112206616,3.17662,3148.0,3147.3,2.5418]
[1732112206842,3.17662,3148.0,3147.4,2.54177]
[1732112207229,6.17679,3147.9,3147.2,2.5419]
[1732112207467,0.02371098,3147.8,3147.2,2.5419]
[1732112207649,0.01,3148.4,3147.3,2.54186]
[1732112207650,6.17662,3148.0,3147.3,2.54186]
[1732112207853,0.318616,3148.3,3147.4,0.03177185]
[1732112208071,3.17652,3148.1,3147.5,2.54164]
[1732112208439,3.17652,3148.1,3147.3,2.54182]
[1732112208640,3.17675,3147.9,3147.2,2.54192]
[1732112208954,3.17692,3147.7,3146.9,1.1852]
[1732112209172,3.17721,3147.5,3146.8,2.54223]
[1732112209505,0.34377408,3147.6,3146.5,1.1836]
[1732112209506,0.02371098,3147.4,3146.5,1.1836]
[1732112209645,1.1397,3147.3,3146.2,0.179078]
[1732112209837,3.0,3147.7,3146.8,2.5422]
[1732112209838,3.17719,3147.5,3146.8,2.5422]
[1732112210040,3.17719,3147.5,3146.8,2.54225]
[1732112210240,1.02680423,3147.6,3146.9,2.5421]
[1732112210440,1.02680423,3147.6,3146.8,2.54225]
[1732112210441,3.0,3147.6,3146.8,2.54225]
[1732112210669,3.17694,3147.7,3147.0,2.54207]
[1732112210856,3.17704,3147.6,3147.0,2.54207]
[1732112211063,0.431664,3147.7,3147.0,2.54203]
[1732112211389,0.431664,3147.7,3146.9,1.0905]
[1732112211390,3.1771,3147.6,3146.9,1.0905]
[1732112211588,3.17745,3147.2,3146.6,2.54237]
[1732112211857,0.3200811,3147.5,3146.3,2.54266]
[1732112211858,1.22381098,3147.1,3146.3,2.54266]
[1732112212020,3.17804,3146.6,3146.2,0.179078]
[1732112212179,1.2001,3147.6,3146.3,2.54266]
[1732112212379,0.01,3148.4,3146.9,2.54215]
[1732112212380,3.17679,3147.9,3146.9,2.54215]
[1732112212565,0.46139998,3147.9,3146.4,1.0905]
[1732112212766,3.17689,3147.8,3147.1,2.54202]
[1732112212967,3.17727,3147.4,3146.5,0.03126036]
[1732112213222,3.17751,3147.2,3146.6,2.54235]
[1732112214334,3.17751,3147.2,3146.5,2.54248]
[1732112214473,3.17751,3147.2,3146.6,2.54239]
[1732112215112,3.8447587,3147.2,3146.6,2.54237]
[1732112215313,3.17755,3147.1,3146.4,1.0905]
[1732112215635,3.1774,3147.3,3146.7,2.54231]
[1732112215770,3.0,3148.0,3147.0,2.54209]
[1732112215771,3.17702,3147.6,3147.0,2.54209]
[1732112216276,3.17723,3147.4,3146.8,2.54223]
[1732112216466,3.812655,3147.4,3146.8,2.54223]
[1732112216668,3.812655,3147.4,3146.9,2.54217]
[1732112216883,3.17771,3147.0,3146.4,1.0905]
[1732112217185,3.17677,3147.9,3146.2,0.179078]
[1732112217186,0.02371098,3146.9,3146.2,0.179078]
[1732112217384,3.17789,3146.8,3146.2,0.179078]
[1732112217633,3.17804,3146.6,3146.2,0.179078]
[1732112217992,3.17783,3146.8,3146.2,0.179078]
[1732112217993,3.17819,3146.5,3146.2,0.179078]
[1732112218206,3.17767,3147.0,3146.3,2.54259]
[1732112218376,3.17761,3147.1,3146.3,2.54259]
[1732112218575,3.17774,3146.9,3146.3,2.54259]
[1732112218981,3.17773,3146.9,3146.3,2.54259]
[1732112219183,3.17789,3146.8,3146.2,0.179078]
[1732112219674,3.1781,3146.6,3146.2,0.179078]
[1732112219872,3.17829,3146.4,3146.2,0.179078]
[1732112220308,0.02371098,3146.7,3146.2,0.179078]
[1732112220309,3.17813,3146.5,3146.2,0.179078]
[1732112220532,0.317789,3146.8,3146.2,0.179078]
[1732112220822,3.17833,3146.3,3146.2,0.179078]
[1732112221819,7.82763,3146.3,3146.2,8e-06]
[1732112222023,4.27824,3145.7,3145.6,3.91e-06]
[1732112222188,8.04764898,3145.7,3145.6,3.91e-06]
[1732112222393,8.023938,3145.7,3145.6,3.91e-06]
[1732112222576,5.023938,3145.7,3145.6,3.91e-06]
[1732112222772,3.17894,3145.7,3145.6,3.91e-06]
[1732112223027,3.20265098,3145.7,3145.6,3.91e-06]
[1732112223174,6.20265098,3145.7,3145.6,3.91e-06]
[1732112223380,7.30195098,3145.7,3145.6,3.91e-06]
[1732112223616,7.27824,3145.7,3145.6,3.91e-06]
[1732112223815,9.06193523,3145.7,3145.6,3.91e-06]
[1732112224017,4.27824,3145.7,3145.6,3.91e-06]
[1732112224196,1.0993,3146.6,3145.6,3.91e-06]
[1732112224413,3.17823,3146.4,3145.7,1.2038]
[1732112224616,3.1786,3146.1,3145.6,3.91e-06]
[1732112224926,3.17829,3146.4,3145.6,0.2543343]
[1732112225129,4.27697,3147.0,3145.6,0.28611946]
[1732112225424,4.27697,3147.0,3145.9,2.54293]
[1732112225425,3.17791,3146.8,3145.9,2.54293]
[1732112225625,4.27697,3147.0,3146.3,2.54264]
[1732112225925,4.27697,3147.0,3145.6,0.03178708]
[1732112225926,3.20150098,3146.9,3146.0,2.54288]
[1732112226126,3.17783,3146.8,3146.0,2.54285]
[1732112226282,0.45142398,3146.8,3145.7,2.54308]
[1732112226481,3.1783,3146.4,3145.8,2.54302]
[1732112226986,3.17846,3146.2,3145.6,2.54320391]
[1732112227123,0.02371098,3146.3,3145.6,2.54320391]
[1732112227124,0.02371098,3146.3,3145.6,3.91e-06]
[1732112227351,3.17851,3146.2,3145.6,3.91e-06]
[1732112227499,3.17881,3145.9,3145.6,3.91e-06]
[1732112228038,3.17894,3145.7,3145.6,3.91e-06]
[1732112228268,1.1095,3146.1,3145.6,3.91e-06]
[1732112228397,3.17875,3145.9,3145.6,3.91e-06]
[1732112228603,6.17894,3145.7,3145.6,3.91e-06]
[1732112229293,7.27354,3145.7,3145.6,3.91e-06]
[1732112230130,7.28354,3145.7,3145.6,3.91e-06]
[1732112230959,7.28354,3145.7,3145.2,1.54818126]
[1732112230960,3.17934,3145.3,3145.2,1.54818126]
[1732112231100,10.58841634,3145.3,3145.2,1.54818126]
[1732112231591,10.33841634,3145.3,3145.2,1.54818126]
[1732112232413,11.45861634,3145.3,3145.2,1.54818126]
[1732112234845,11.46861634,3145.3,3145.2,1.26e-06]
[1732112235504,11.45861634,3145.3,3145.2,1.26e-06]
[1732112235703,2.92934,3145.3,3145.2,1.26e-06]
[1732112236904,10.02048234,3145.3,3145.2,1.26e-06]
[1732112237557,11.20538234,3145.3,3145.2,1.26e-06]
[1732112238139,3.18975,3144.9,3144.8,9.86e-06]
[1732112238340,3.18975,3144.9,3144.4,5.81e-06]
[1732112238341,3.19015,3144.5,3144.4,5.81e-06]
[1732112238542,3.19015,3144.5,3141.8,4.10114234]
[1732112238543,3.18056,3144.1,3144.0,9.1e-06]
[1732112238743,6.18056,3144.1,3144.0,9.1e-06]
[1732112238901,6.20427098,3144.1,3144.0,9.1e-06]
[1732112239701,6.18056,3144.1,3144.0,9.1e-06]
[1732112240344,3.18045,3144.3,3144.0,9.1e-06]
[1732112240705,6.18056,3144.1,3144.0,9.1e-06]
[1732112240935,6.19056,3144.1,3144.0,9.1e-06]
[1732112241145,6.18056,3144.1,3144.0,9.1e-06]
[1732112241318,6.18056,3144.1,3143.6,1.70841064]
[1732112241319,6.19066,3144.0,3143.9,6.2e-06]
[1732112241645,8.57659808,3144.0,3143.9,6.2e-06]
[1732112241808,8.5528871,3144.0,3143.9,6.2e-06]
[1732112242444,8.5528871,3144.0,3143.6,1.70841064]
[1732112242445,6.19096,3143.7,3143.6,6.84e-06]
[1732112242678,10.85581332,3143.7,3143.6,6.84e-06]
[1732112242987,3.18177,3142.9,3142.4,1.82858267]
[1732112243151,6.18177,3142.9,3142.4,1.82858267]
[1732112243353,6.18177,3142.9,3142.4,3.00828267]
[1732112243740,3.0,3142.9,3142.4,3.00828267]
[1732112244085,3.18149,3143.2,3142.4,3.00828267]
[1732112244299,6.18177,3142.9,3142.4,1.82858267]
[1732112244443,7.899047,3142.9,3142.4,1.82858267]
[1732112244644,7.28087,3142.9,3142.4,1.82858267]
[1732112244844,7.83087,3142.9,3142.4,1.82858267]
[1732112245303,7.28087,3142.9,3142.4,1.82858267]
[1732112245444,6.18217,3142.5,3142.4,1.82858267]
[1732112245645,11.20973534,3142.5,3142.4,1.82858267]
[1732112246406,11.75973534,3142.5,3142.4,1.82858267]
[1732112246901,12.87833534,3142.5,3142.4,2.67e-06]
[1732112247084,6.73258,3142.1,3142.0,1.86864002]
[1732112247270,6.18258,3142.1,3142.0,1.86864002]
[1732112248060,3.0,3142.4,3142.0,1.86864002]
[1732112248561,6.18258,3142.1,3142.0,1.86864002]
[1732112248788,8.62421408,3142.1,3142.0,1.86864002]
[1732112248984,8.6005031,3142.1,3142.0,1.86864002]
[1732112249554,9.1505031,3142.1,3142.0,1.86864002]
[1732112249761,9.1705031,3142.1,3142.0,1.27752932]
[1732112250065,3.19299,3141.7,3141.6,1.90869736]
[1732112250360,10.86784332,3141.7,3141.6,1.90869736]
[1732112250596,10.84413234,3141.7,3141.6,1.90869736]
[1732112250955,6.18299,3141.7,3141.6,1.90869736]
[1732112251203,11.41844332,3141.7,3141.6,1.90869736]
[1732112251501,12.85586367,3141.7,3141.6,1.90869736]
[1732112251670,12.86586367,3141.7,3141.6,7.36e-06]
[1732112251871,12.85586367,3141.7,3141.6,7.36e-06]
[1732112252073,12.86586367,3141.7,3141.6,7.36e-06]
[1732112252271,13.40586367,3141.7,3141.6,7.36e-06]
[1732112253056,12.85586367,3141.7,3141.6,7.36e-06]
[1732112253305,11.39473234,3141.7,3141.6,7.36e-06]
[1732112253670,11.40473234,3141.7,3141.6,7.36e-06]
[1732112254205,11.39473234,3141.7,3141.6,7.36e-06]
[1732112254356,10.27413234,3141.7,3141.6,7.36e-06]
[1732112254557,3.18287,3141.9,3141.6,7.36e-06]
[1732112254762,4.09114234,3141.7,3141.6,7.36e-06]
[1732112254961,7.27413234,3141.7,3141.6,7.36e-06]
[1732112255865,10.27413234,3141.7,3141.6,7.36e-06]
[1732112256116,10.82413234,3141.7,3141.6,7.36e-06]
[1732112256401,10.83413234,3141.7,3141.6,7.36e-06]
[1732112256603,16.78159337,3141.7,3141.6,7.36e-06]
[1732112256835,6.19339,3141.3,3141.2,1.94875471]
[1732112256957,6.7438,3140.9,3140.8,2.13364915]
[1732112257173,6.7342,3140.5,3139.7,2.10898409]
[1732112257573,6.1842,3140.5,3140.1,3.27702674]
[1732112257765,6.1842,3140.5,3140.1,2.06892674]
[1732112259017,3.0,3140.5,3140.2,2.86599]
[1732112259229,3.18315,3141.6,3140.5,1.2153]
[1732112259434,1.1228,3142.1,3140.6,0.356257]
[1732112259580,0.02371098,3141.7,3141.0,2.86529]
[1732112259775,0.02371098,3141.7,3140.9,2.86535]
[1732112259976,0.02371098,3142.0,3141.4,2.8649]
[1732112260221,0.02371098,3142.0,3141.5,2.86485]
[1732112260438,0.02371098,3142.0,3141.4,1.1643]
[1732112260731,0.02371098,3142.3,3141.5,2.86485]
[1732112260908,0.54706521,3142.3,3141.4,1.1643]
[1732112261112,0.54706521,3142.3,3140.9,1.1328]
[1732112261113,3.72953521,3142.3,3140.9,1.1328]
[1732112261291,3.18276,3142.0,3141.4,2.86494]
[1732112261478,3.64630076,3142.2,3141.4,2.86494]
[1732112261479,0.02371098,3142.1,3141.5,2.86485]
[1732112261679,3.18295,3141.8,3141.2,2.86514]
[1732112261938,3.18268,3142.0,3141.5,2.86483]
[1732112262076,3.18336,3141.4,3140.9,1.1328]
[1732112262281,0.02371098,3141.3,3140.9,1.1328]
[1732112262476,3.183,3141.7,3140.9,1.1328]
[1732112262477,0.46382076,3142.2,3141.6,2.86478]
[1732112262777,0.46382076,3142.2,3140.9,1.532623]
[1732112262778,3.0,3141.6,3140.9,1.532623]
[1732112262975,3.20680098,3141.6,3140.9,1.1328]
[1732112263308,3.1834,3141.3,3140.9,1.1328]
[1732112263517,3.18327,3141.5,3140.9,3.99821]
[1732112263692,0.34440908,3141.5,3140.5,1.1031]
[1732112264010,3.18362,3141.1,3140.5,3.96881]
[1732112264175,3.18371,3141.0,3140.5,1.1031]
[1732112265328,0.02371098,3141.1,3140.4,4.8947394]
[1732112265329,3.18401,3140.7,3140.4,2.0288694]
[1732112265682,3.0,3141.3,3140.4,2.0288694]
[1732112265883,0.02371098,3141.3,3140.6,2.86562]
[1732112266106,3.02371098,3141.3,3140.9,2.86536]
[1732112266318,3.18335,3141.4,3140.8,2.86551]
[1732112266525,3.0,3141.3,3140.8,2.86543]
[1732112266686,3.0,3141.4,3140.5,1.1997]
[1732112266885,3.18333,3141.4,3140.7,2.86554]
[1732112267381,0.02371098,3141.3,3140.5,1.1997]
[1732112267578,3.0,3141.5,3141.2,2.86506]
[1732112267579,0.02371098,3141.5,3141.2,2.86506]
[1732112267804,3.02371098,3141.5,3140.5,1.1997]
[1732112268036,1.1785,3142.0,3140.5,1.1997]
[1732112268037,0.02371098,3141.7,3140.6,0.32385694]
[1732112268188,3.0,3141.6,3141.0,2.8653]
[1732112268386,3.0,3141.6,3140.6,0.32385694]
[1732112268585,0.34436208,3141.7,3141.0,2.86528]
[1732112269136,3.0,3141.5,3141.0,2.86532]
[1732112269281,3.0,3141.5,3141.1,2.86523]
[1732112269487,3.02371098,3141.7,3141.1,2.86523]
[1732112269736,3.02371098,3141.7,3141.2,2.86507]
[1732112270038,3.19,3142.6,3141.7,2.86465]
[1732112270039,0.02371098,3142.1,3141.7,2.86465]
[1732112270235,3.18221,3142.5,3141.9,2.86444]
[1732112270389,3.20592098,3142.5,3141.9,2.86444]
[1732112270585,0.02371098,3142.5,3142.0,2.86436]
[1732112270933,4.3001,3142.6,3142.1,2.86432]
[1732112270934,3.20371098,3142.6,3142.1,2.86432]
[1732112271143,3.20371098,3142.6,3141.8,1.1142]
[1732112271144,0.02371098,3142.8,3141.8,1.1142]
[1732112271434,0.02371098,3142.8,3141.8,3.97879]
[1732112271435,3.18223,3142.5,3141.8,3.97879]
[1732112271584,0.02371098,3142.4,3141.8,2.86458]
[1732112271781,3.18213,3142.6,3141.8,2.86451]
[1732112271983,0.02371098,3142.5,3142.0,2.86436]
[1732112272283,0.02371098,3142.8,3142.3,2.86413]
[1732112272539,3.18183,3142.9,3142.2,4.02606]
[1732112272688,3.18183,3142.9,3142.3,2.86413]
[1732112273025,0.02371098,3142.8,3141.9,2.86445]
[1732112273230,0.02371098,3142.8,3141.8,1.1619]
[1732112273442,0.02371098,3142.8,3142.4,2.86404]
[1732112273588,3.0,3142.9,3142.4,2.86404]
[1732112273783,3.618176,3142.9,3142.5,2.86394]
[1732112274086,3.20547098,3143.0,3142.4,2.86404]
[1732112274087,3.18167,3143.0,3142.4,2.86404]
[1732112274285,3.20538098,3143.0,3142.4,2.86404]
[1732112274513,0.02371098,3143.0,3142.5,2.8639]
[1732112274894,3.18117,3143.5,3142.9,2.86353]
[1732112275219,0.02371098,3143.5,3143.0,1.1772]
[1732112275386,0.02371098,3143.5,3143.0,4.04064]
[1732112275594,0.02371098,3143.6,3143.1,2.86341]
[1732112275927,0.02371098,3143.6,3143.0,1.1772]
[1732112276110,3.20484098,3143.6,3143.0,1.1772]
[1732112276330,3.18123,3143.5,3143.0,1.1772]
[1732112276489,0.02371098,3143.4,3143.0,1.1772]
[1732112276691,0.02371098,3143.4,3143.0,4.0407]
[1732112277085,0.02371098,3143.6,3143.1,2.86334]
[1732112277243,3.18037,3144.3,3143.0,1.1772]
[1732112277244,3.18057,3144.1,3143.4,2.86306]
[1732112277400,0.40911423,3144.0,3143.4,2.86312]
[1732112277748,0.02371098,3144.1,3143.0,4.04067]
[1732112278037,3.18057,3144.1,3143.4,2.86312]
[1732112278343,3.52246798,3144.0,3143.2,5.72653]
[1732112278542,3.52246798,3144.0,3143.0,1.1772]
[1732112278543,0.34176798,3144.0,3143.1,2.86341]
[1732112278750,0.02371098,3144.0,3143.0,1.1772]
[1732112279037,0.02371098,3144.0,3143.2,0.01]
[1732112279248,1.2081,3144.7,3144.2,2.8624]
[1732112279399,1.2081,3144.7,3143.9,2.86268]
[1732112279400,0.438788,3144.7,3143.9,2.86268]
[1732112279630,0.02371098,3144.8,3144.3,2.86224]
[1732112279793,0.41148533,3144.8,3144.4,2.86221]
[1732112280019,0.41148533,3144.8,3144.6,2.862]
[1732112280221,0.02371098,3145.2,3144.0,2.86259]
[1732112280430,4.09114234,3145.0,3143.8,4.11252]
[1732112280648,3.18001,3144.7,3144.0,2.86252]
[1732112280795,0.02371098,3144.6,3143.8,1.2498]
[1732112281104,0.02371098,3144.6,3144.2,2.86234]
[1732112281305,3.0,3144.6,3143.8,4.11257]
[1732112281508,3.0,3144.6,3142.6,2.86381]
[1732112281509,3.0,3144.3,3143.0,2.86346]
[1732112281753,1.2788,3144.4,3143.0,2.86346]
[1732112281754,3.0,3143.8,3143.0,2.86346]
[1732112282038,3.18118,3143.5,3142.9,1.2009]
[1732112282238,3.1815,3143.2,3142.9,1.2009]
[1732112282545,3.18148,3143.2,3142.9,1.2009]
[1732112282706,0.02371098,3143.1,3142.5,4.04479]
[1732112282893,3.34421508,3143.3,3142.5,4.04479]
[1732112283091,6.5018841,3143.3,3142.7,2.86377]
[1732112283289,0.96831841,3143.2,3142.5,1.1809]
[1732112283492,3.18177,3143.0,3142.5,1.1809]
[1732112283747,1.2792,3143.6,3142.6,2.86378]
[1732112283748,3.0,3143.3,3142.6,2.86378]
[1732112284033,3.18183,3142.9,3142.2,2.86418]
[1732112284244,3.18183,3142.9,3142.3,2.86408]
[1732112284411,3.0,3143.0,3142.1,1.2862]
[1732112284609,3.18167,3143.1,3142.5,2.86389]
[1732112284799,3.0,3143.0,3142.5,2.86395]
[1732112284995,6.8022881,3143.0,3142.3,2.86407]
[1732112285209,1.1775,3144.0,3143.4,2.86312]
[1732112285421,3.18112,3143.6,3143.0,2.86344]
[1732112285648,3.18135,3143.4,3142.8,2.86366]
[1732112285813,0.02371098,3143.3,3142.8,2.86366]
[1732112286007,0.02371098,3143.4,3142.7,1.2482]
[1732112286206,3.0,3143.9,3143.3,2.86317]
[1732112286450,3.18107,3143.6,3142.9,5.72708]
[1732112286745,3.18139,3143.3,3142.7,4.11193]
[1732112286905,0.02371098,3143.2,3142.7,4.11193]
[1732112287101,3.18128,3143.4,3142.7,4.11195]
[1732112287102,0.02371098,3143.4,3142.7,4.11195]
[1732112287330,3.55491968,3143.4,3142.7,1.2482]
[1732112287496,3.18154,3143.2,3142.6,2.86383]
[1732112287698,3.18182,3142.9,3142.3,4.09691]
[1732112288012,3.20537098,3143.1,3142.3,4.09691]